[Event "Late-Titled-Tuesday-Blitz-September-19-2023"]
[Site "Chess.com"]
[Date "2023.09.19"]
[Round "7"]
[White "traack"]
[Black "jk13"]
[Result "0-1"]
[WhiteElo "2366"]
[BlackElo "2631"]
[TimeControl "180+1"]
[EndTime "15:14:33 PDT"]
[Termination "jk13 won by resignation"]

1. f4 {[%clk 0:03:00.9]} 1... d5 {[%clk 0:02:59.6]} 2. Nf3 {[%clk 0:02:44.4]}
2... c6 {[%clk 0:03:00.5]} 3. b3 {[%clk 0:02:39]} 3... Bg4 {[%clk 0:03:00.9]} 4.
Bb2 {[%clk 0:02:36.3]} 4... Nd7 {[%clk 0:02:57.5]} 5. Ne5 {[%clk 0:02:34.4]}
5... Nxe5 {[%clk 0:02:56.6]} 6. Bxe5 {[%clk 0:02:33.8]} 6... f6 {[%clk
0:02:45.2]} 7. Bb2 {[%clk 0:02:31.1]} 7... Qc7 {[%clk 0:02:45.1]} 8. g3 {[%clk
0:02:30.5]} 8... e5 {[%clk 0:02:42.5]} 9. fxe5 {[%clk 0:02:27.7]} 9... fxe5
{[%clk 0:02:42.5]} 10. Bg2 {[%clk 0:02:27.5]} 10... Bc5 {[%clk 0:02:40.3]} 11.
d4 {[%clk 0:02:22.6]} 11... exd4 {[%clk 0:02:40.1]} 12. Bxd4 {[%clk 0:02:22]}
12... Qe7 {[%clk 0:02:27.3]} 13. Nc3 {[%clk 0:02:03.7]} 13... O-O-O {[%clk
0:02:24.7]} 14. O-O {[%clk 0:02:02.1]} 14... Nf6 {[%clk 0:02:23.4]} 15. Kh1
{[%clk 0:01:55.3]} 15... Rhe8 {[%clk 0:02:23.8]} 16. Bf3 {[%clk 0:01:51.5]}
16... Bh3 {[%clk 0:02:23.5]} 17. Re1 {[%clk 0:01:50.6]} 17... Kb8 {[%clk
0:02:13.9]} 18. Qd2 {[%clk 0:01:47.6]} 18... Ne4 {[%clk 0:01:56.9]} 19. Bxe4
{[%clk 0:01:37.5]} 19... dxe4 {[%clk 0:01:57.8]} 20. Bxc5 {[%clk 0:01:28.5]}
20... Qxc5 {[%clk 0:01:49]} 21. Qf4+ {[%clk 0:01:28.3]} 21... Ka8 {[%clk
0:01:49.5]} 22. Na4 {[%clk 0:01:19.3]} 22... Qd4 {[%clk 0:01:44.1]} 23. Qh4
{[%clk 0:01:12]} 23... Bf5 {[%clk 0:01:36.6]} 24. Rad1 {[%clk 0:01:06.6]} 24...
Qxd1 {[%clk 0:01:25.7]} 25. Rxd1 {[%clk 0:01:06.4]} 25... Rxd1+ {[%clk
0:01:26.6]} 26. Kg2 {[%clk 0:01:07]} 26... e3 {[%clk 0:01:18.3]} 27. Nc3 {[%clk
0:01:07.4]} 27... Rd2 {[%clk 0:01:10.9]} 28. Qf4 {[%clk 0:01:04.1]} 28... Bg6
{[%clk 0:01:05.8]} 29. Kf3 {[%clk 0:00:45.9]} 29... Rxc2 {[%clk 0:01:05.3]} 30.
Na4 {[%clk 0:00:43.6]} 30... Rc1 {[%clk 0:00:51.5]} 31. Qc7 {[%clk 0:00:40.6]}
31... Rf1+ {[%clk 0:00:48.3]} 32. Kg4 {[%clk 0:00:35.9]} 32... Rf7 {[%clk
0:00:36.9]} 33. Qa5 {[%clk 0:00:35.1]} 33... Kb8 {[%clk 0:00:33.2]} 34. Nc5
{[%clk 0:00:32.8]} 34... Rfe7 {[%clk 0:00:21.8]} 35. Qb4 {[%clk 0:00:30.3]}
35... Re4+ {[%clk 0:00:21.3]} 36. Nxe4 {[%clk 0:00:28.4]} 36... Rxe4+ {[%clk
0:00:22.2]} 0-1

[Event "Late-Titled-Tuesday-Blitz-September-19-2023"]
[Site "Chess.com"]
[Date "2023.09.19"]
[Round "7"]
[White "mac0504"]
[Black "rikchessmx"]
[Result "1-0"]
[WhiteElo "2568"]
[BlackElo "2337"]
[TimeControl "180+1"]
[EndTime "15:14:33 PDT"]
[Termination "mac0504 won on time"]

1. c4 {[%clk 0:02:53.9]} 1... Nf6 {[%clk 0:02:12.9]} 2. Nc3 {[%clk 0:02:54.8]}
2... c5 {[%clk 0:02:13]} 3. Nf3 {[%clk 0:02:53.6]} 3... Nc6 {[%clk 0:02:13.6]}
4. g3 {[%clk 0:02:53.5]} 4... d5 {[%clk 0:02:13.9]} 5. cxd5 {[%clk 0:02:53.9]}
5... Nxd5 {[%clk 0:02:14.7]} 6. Bg2 {[%clk 0:02:54.7]} 6... e5 {[%clk
0:02:14.4]} 7. O-O {[%clk 0:02:55]} 7... Nc7 {[%clk 0:02:14.5]} 8. a3 {[%clk
0:02:47.7]} 8... Be7 {[%clk 0:02:14.2]} 9. Rb1 {[%clk 0:02:42.6]} 9... O-O
{[%clk 0:02:13.1]} 10. b4 {[%clk 0:02:43]} 10... cxb4 {[%clk 0:02:13]} 11. axb4
{[%clk 0:02:43.6]} 11... Bxb4 {[%clk 0:02:09.5]} 12. Nxe5 {[%clk 0:02:43.8]}
12... Nxe5 {[%clk 0:01:51.6]} 13. Rxb4 {[%clk 0:02:44.5]} 13... Nc6 {[%clk
0:01:51.5]} 14. Bxc6 {[%clk 0:02:40.7]} 14... bxc6 {[%clk 0:01:50.7]} 15. d3
{[%clk 0:02:41.1]} 15... Nd5 {[%clk 0:01:50.3]} 16. Rc4 {[%clk 0:02:39.2]} 16...
Bh3 {[%clk 0:01:46]} 17. Re1 {[%clk 0:02:38]} 17... Nxc3 {[%clk 0:01:45.8]} 18.
Rxc3 {[%clk 0:02:38.9]} 18... Re8 {[%clk 0:01:42]} 19. Qc2 {[%clk 0:02:08.3]}
19... Rc8 {[%clk 0:01:39.6]} 20. e4 {[%clk 0:02:06.7]} 20... Qd7 {[%clk
0:01:38.2]} 21. Be3 {[%clk 0:02:02.5]} 21... Red8 {[%clk 0:01:35.4]} 22. Ra1
{[%clk 0:01:55.5]} 22... Rc7 {[%clk 0:01:33.9]} 23. Rca3 {[%clk 0:01:51.4]}
23... Ra8 {[%clk 0:01:28.8]} 24. f3 {[%clk 0:01:47.8]} 24... h5 {[%clk
0:01:13.8]} 25. Qc3 {[%clk 0:01:44.1]} 25... Be6 {[%clk 0:00:56.6]} 26. Ra5
{[%clk 0:01:44]} 26... Rd8 {[%clk 0:00:46.6]} 27. Rg5 {[%clk 0:01:38.8]} 27...
g6 {[%clk 0:00:35.6]} 28. Ra3 {[%clk 0:01:39.2]} 28... Rb7 {[%clk 0:00:26.2]}
29. Bd4 {[%clk 0:01:39.3]} 29... Qxd4+ {[%clk 0:00:20.2]} 30. Qxd4 {[%clk
0:01:38.8]} 30... Rxd4 {[%clk 0:00:20.2]} 31. Kf2 {[%clk 0:01:39.7]} 31... Rdb4
{[%clk 0:00:17.9]} 32. Rga5 {[%clk 0:01:36.5]} 32... Rb2+ {[%clk 0:00:16.4]} 33.
Ke3 {[%clk 0:01:37.2]} 33... Rxh2 {[%clk 0:00:15.7]} 34. Rxa7 {[%clk 0:01:36.3]}
34... Rxa7 {[%clk 0:00:15.8]} 35. Rxa7 {[%clk 0:01:37.2]} 35... h4 {[%clk
0:00:16]} 36. gxh4 {[%clk 0:01:33.6]} 36... Rxh4 {[%clk 0:00:16.1]} 37. Rc7
{[%clk 0:01:32.4]} 37... Rh3 {[%clk 0:00:16]} 38. Kf4 {[%clk 0:01:32]} 38...
Rh4+ {[%clk 0:00:15.1]} 39. Ke3 {[%clk 0:01:31.3]} 39... Rh3 {[%clk 0:00:15.1]}
40. Kf4 {[%clk 0:01:30.4]} 40... Rh1 {[%clk 0:00:12.1]} 41. Rxc6 {[%clk
0:01:30.7]} 41... Kg7 {[%clk 0:00:12.5]} 42. d4 {[%clk 0:01:28.6]} 42... Bh3
{[%clk 0:00:12.6]} 43. d5 {[%clk 0:01:27.8]} 43... Rd1 {[%clk 0:00:12.6]} 44.
Rc7 {[%clk 0:01:21.3]} 44... Kf6 {[%clk 0:00:12.3]} 45. e5+ {[%clk 0:01:19.4]}
45... Kg7 {[%clk 0:00:12.5]} 46. e6 {[%clk 0:01:20.3]} 46... Rxd5 {[%clk
0:00:10.3]} 47. e7 {[%clk 0:01:20.9]} 47... Rd4+ {[%clk 0:00:04]} 48. Kg3 {[%clk
0:01:15.8]} 48... Rd7 {[%clk 0:00:01.3]} 49. e8=Q {[%clk 0:01:12.9]} 49... Rxc7
{[%clk 0:00:01.1]} 50. Qe5+ {[%clk 0:01:13.7]} 1-0

[Event "Late-Titled-Tuesday-Blitz-September-19-2023"]
[Site "Chess.com"]
[Date "2023.09.19"]
[Round "7"]
[White "elpatodice"]
[Black "IgorBjelobrk"]
[Result "0-1"]
[WhiteElo "2370"]
[BlackElo "2683"]
[TimeControl "180+1"]
[EndTime "15:14:38 PDT"]
[Termination "IgorBjelobrk won by resignation"]

1. e4 {[%clk 0:03:00.9]} 1... e6 {[%clk 0:03:00.1]} 2. d4 {[%clk 0:03:00.6]}
2... d5 {[%clk 0:03:00.4]} 3. Nd2 {[%clk 0:03:01.2]} 3... c5 {[%clk 0:03:00.5]}
4. exd5 {[%clk 0:03:01.3]} 4... exd5 {[%clk 0:03:00.9]} 5. Ngf3 {[%clk
0:03:00.9]} 5... Nc6 {[%clk 0:03:01.2]} 6. Bb5 {[%clk 0:03:00.9]} 6... cxd4
{[%clk 0:03:01.6]} 7. O-O {[%clk 0:02:57.4]} 7... Bd6 {[%clk 0:03:01.3]} 8. Nxd4
{[%clk 0:02:54.7]} 8... Bxh2+ {[%clk 0:03:01.4]} 9. Kxh2 {[%clk 0:02:50.5]} 9...
Qh4+ {[%clk 0:03:01.9]} 10. Kg1 {[%clk 0:02:50.9]} 10... Qxd4 {[%clk 0:03:02.5]}
11. c3 {[%clk 0:02:40.3]} 11... Qf6 {[%clk 0:02:43]} 12. Re1+ {[%clk 0:02:37.3]}
12... Ne7 {[%clk 0:02:42.7]} 13. Nf3 {[%clk 0:02:34.1]} 13... Bg4 {[%clk
0:02:01.3]} 14. Qxd5 {[%clk 0:02:26]} 14... Bxf3 {[%clk 0:01:58.3]} 15. Qxf3
{[%clk 0:01:40.6]} 15... Qxf3 {[%clk 0:01:57.7]} 16. gxf3 {[%clk 0:01:41.3]}
16... O-O {[%clk 0:01:55.6]} 17. Bg5 {[%clk 0:01:39.2]} 17... Ng6 {[%clk
0:01:52.7]} 18. Bxc6 {[%clk 0:01:27.3]} 18... bxc6 {[%clk 0:01:52.3]} 19. Rad1
{[%clk 0:01:27.4]} 19... h6 {[%clk 0:01:51.4]} 20. Be3 {[%clk 0:01:23.1]} 20...
Nh4 {[%clk 0:01:49.8]} 21. Re2 {[%clk 0:01:10]} 21... Nxf3+ {[%clk 0:01:50]} 22.
Kg2 {[%clk 0:01:10.4]} 22... Nh4+ {[%clk 0:01:48.3]} 23. Kh3 {[%clk 0:01:10.9]}
23... Nf5 {[%clk 0:01:46.8]} 24. Bc5 {[%clk 0:01:11.1]} 24... Rfd8 {[%clk
0:01:42]} 25. Rxd8+ {[%clk 0:01:04.8]} 25... Rxd8 {[%clk 0:01:42.9]} 26. Bxa7
{[%clk 0:01:03.9]} 26... Ra8 {[%clk 0:01:43.1]} 27. Bc5 {[%clk 0:00:57.1]} 27...
Rxa2 {[%clk 0:01:42.9]} 28. Re8+ {[%clk 0:00:52.1]} 28... Kh7 {[%clk 0:01:42.6]}
29. Rb8 {[%clk 0:00:52.5]} 29... g5 {[%clk 0:01:39.6]} 30. Kg4 {[%clk
0:00:51.9]} 30... Ng7 {[%clk 0:01:38.4]} 31. Rb7 {[%clk 0:00:48]} 31... Kg6
{[%clk 0:01:37.8]} 32. Bd4 {[%clk 0:00:47.4]} 32... Ne6 {[%clk 0:01:36.3]} 33.
Rb6 {[%clk 0:00:43.6]} 33... Nxd4 {[%clk 0:01:32.5]} 34. cxd4 {[%clk 0:00:44.5]}
34... f6 {[%clk 0:01:32.9]} 35. Kg3 {[%clk 0:00:37.9]} 35... h5 {[%clk
0:01:30.8]} 36. b4 {[%clk 0:00:33.7]} 36... Rd2 {[%clk 0:01:28.3]} 37. Rxc6
{[%clk 0:00:32.5]} 37... Rxd4 {[%clk 0:01:28.1]} 38. b5 {[%clk 0:00:33]} 38...
Rb4 {[%clk 0:01:28.3]} 39. b6 {[%clk 0:00:33]} 39... h4+ {[%clk 0:01:27]} 40.
Kg2 {[%clk 0:00:31.8]} 40... g4 {[%clk 0:01:26.9]} 41. Rd6 {[%clk 0:00:27.6]}
41... Kg5 {[%clk 0:01:21.3]} 42. Rc6 {[%clk 0:00:24.8]} 42... f5 {[%clk
0:01:21.3]} 43. Rd6 {[%clk 0:00:21.6]} 43... Rb2 {[%clk 0:01:21.2]} 44. Rc6
{[%clk 0:00:20]} 44... g3 {[%clk 0:01:20.6]} 45. Rc8 {[%clk 0:00:10.7]} 45...
Rxf2+ {[%clk 0:01:18.5]} 46. Kg1 {[%clk 0:00:07.8]} 46... Rb2 {[%clk 0:01:18.2]}
47. Rb8 {[%clk 0:00:06.9]} 47... Kf4 {[%clk 0:01:16.9]} 48. Kf1 {[%clk
0:00:06.6]} 48... Kf3 {[%clk 0:01:16.7]} 49. Ke1 {[%clk 0:00:07.2]} 49... g2
{[%clk 0:01:15.8]} 0-1

[Event "Late-Titled-Tuesday-Blitz-September-19-2023"]
[Site "Chess.com"]
[Date "2023.09.19"]
[Round "7"]
[White "Bala-Afiada"]
[Black "GMJustin"]
[Result "0-1"]
[WhiteElo "1956"]
[BlackElo "2238"]
[TimeControl "180+1"]
[EndTime "15:14:41 PDT"]
[Termination "GMJustin won on time"]

1. d4 {[%clk 0:02:44.4]} 1... Nf6 {[%clk 0:02:50.1]} 2. c4 {[%clk 0:02:44.4]}
2... e6 {[%clk 0:02:49.6]} 3. g3 {[%clk 0:02:43.9]} 3... Be7 {[%clk 0:02:35.5]}
4. Bg2 {[%clk 0:02:43.3]} 4... O-O {[%clk 0:02:33.7]} 5. Nf3 {[%clk 0:02:43.5]}
5... d5 {[%clk 0:02:25.9]} 6. Qc2 {[%clk 0:02:33.3]} 6... dxc4 {[%clk
0:02:09.4]} 7. Qxc4 {[%clk 0:02:31.9]} 7... a6 {[%clk 0:02:09]} 8. O-O {[%clk
0:02:31.3]} 8... b5 {[%clk 0:02:08.6]} 9. Qc2 {[%clk 0:02:31.2]} 9... Bb7 {[%clk
0:02:08.5]} 10. Bf4 {[%clk 0:02:02.7]} 10... Nd5 {[%clk 0:02:01.9]} 11. Bd2
{[%clk 0:01:55.5]} 11... Nd7 {[%clk 0:01:57.6]} 12. e4 {[%clk 0:01:54.4]} 12...
Nb4 {[%clk 0:01:52.7]} 13. Qb3 {[%clk 0:01:42.1]} 13... c5 {[%clk 0:01:49]} 14.
a3 {[%clk 0:01:30.6]} 14... c4 {[%clk 0:01:43.1]} 15. Qd1 {[%clk 0:01:25.4]}
15... Nd3 {[%clk 0:01:41.9]} 16. Ne1 {[%clk 0:01:02.8]} 16... Nxb2 {[%clk
0:01:37.1]} 17. Qc2 {[%clk 0:01:03]} 17... Na4 {[%clk 0:01:33.5]} 18. Nc3 {[%clk
0:00:34.9]} 18... Nxc3 {[%clk 0:01:26.2]} 19. Bxc3 {[%clk 0:00:35.8]} 19... Nb6
{[%clk 0:01:22.9]} 20. Nf3 {[%clk 0:00:32.1]} 20... Na4 {[%clk 0:01:18.1]} 21.
Bd2 {[%clk 0:00:20.5]} 21... Rc8 {[%clk 0:01:16]} 22. h4 {[%clk 0:00:18.8]}
22... f5 {[%clk 0:00:56]} 23. exf5 {[%clk 0:00:12.1]} 23... Rxf5 {[%clk
0:00:55]} 24. Ne5 {[%clk 0:00:06.2]} 24... Bxg2 {[%clk 0:00:52.7]} 25. Kxg2
{[%clk 0:00:07.1]} 25... Qxd4 {[%clk 0:00:52.1]} 26. Nf3 {[%clk 0:00:02.7]}
26... Qd5 {[%clk 0:00:49.7]} 27. Bf4 {[%clk 0:00:01.5]} 27... Qd3 {[%clk
0:00:22.9]} 0-1

[Event "Late-Titled-Tuesday-Blitz-September-19-2023"]
[Site "Chess.com"]
[Date "2023.09.19"]
[Round "7"]
[White "Rodalquilar"]
[Black "GoldenShare"]
[Result "1-0"]
[WhiteElo "2745"]
[BlackElo "2595"]
[TimeControl "180+1"]
[EndTime "15:14:53 PDT"]
[Termination "Rodalquilar won by resignation"]

1. d4 {[%clk 0:03:00.9]} 1... d5 {[%clk 0:02:59.5]} 2. Nf3 {[%clk 0:03:01.3]}
2... Nf6 {[%clk 0:02:59]} 3. Bf4 {[%clk 0:03:01.6]} 3... c5 {[%clk 0:02:58.2]}
4. e3 {[%clk 0:03:01.9]} 4... Nc6 {[%clk 0:02:58.5]} 5. Nbd2 {[%clk 0:03:02.3]}
5... Qb6 {[%clk 0:02:48.5]} 6. dxc5 {[%clk 0:03:02.2]} 6... Qxc5 {[%clk
0:02:45.6]} 7. a3 {[%clk 0:03:02.1]} 7... Bg4 {[%clk 0:02:42.9]} 8. Be2 {[%clk
0:03:00]} 8... e6 {[%clk 0:02:42.9]} 9. O-O {[%clk 0:02:55.6]} 9... Be7 {[%clk
0:02:42.4]} 10. b4 {[%clk 0:02:47.2]} 10... Qb6 {[%clk 0:02:40.3]} 11. c4 {[%clk
0:02:47.2]} 11... O-O {[%clk 0:02:32.1]} 12. h3 {[%clk 0:02:47]} 12... Bh5
{[%clk 0:02:31.8]} 13. c5 {[%clk 0:02:37.8]} 13... Qd8 {[%clk 0:02:31.9]} 14.
Nb3 {[%clk 0:02:36.7]} 14... Ne4 {[%clk 0:02:29.1]} 15. Rc1 {[%clk 0:02:33]}
15... Bf6 {[%clk 0:02:28.8]} 16. Nfd4 {[%clk 0:02:24.1]} 16... Bxe2 {[%clk
0:02:26.5]} 17. Qxe2 {[%clk 0:02:24.1]} 17... Nxd4 {[%clk 0:01:35.1]} 18. exd4
{[%clk 0:02:23.8]} 18... Bg5 {[%clk 0:00:59.8]} 19. Qe3 {[%clk 0:02:17]} 19...
Re8 {[%clk 0:00:52.3]} 20. Rfd1 {[%clk 0:01:31]} 20... Bxf4 {[%clk 0:00:47.4]}
21. Qxf4 {[%clk 0:01:31.3]} 21... Qd7 {[%clk 0:00:48.1]} 22. Na5 {[%clk
0:01:15.6]} 22... Rac8 {[%clk 0:00:44.4]} 23. f3 {[%clk 0:01:02.9]} 23... Nf6
{[%clk 0:00:44.2]} 24. Qd6 {[%clk 0:00:44.5]} 24... Qa4 {[%clk 0:00:36]} 25.
Nxb7 {[%clk 0:00:41.2]} 25... Qxa3 {[%clk 0:00:35.9]} 26. c6 {[%clk 0:00:38.2]}
26... e5 {[%clk 0:00:29.5]} 27. dxe5 {[%clk 0:00:35]} 27... Qe3+ {[%clk
0:00:29.6]} 28. Kh1 {[%clk 0:00:35.2]} 28... Nh5 {[%clk 0:00:29.7]} 29. Re1
{[%clk 0:00:19]} 29... Ng3+ {[%clk 0:00:28.5]} 30. Kh2 {[%clk 0:00:19.5]} 30...
Qf4 {[%clk 0:00:28.8]} 31. e6 {[%clk 0:00:20.1]} 31... Ne2+ {[%clk 0:00:08.7]}
32. Qxf4 {[%clk 0:00:19.3]} 32... Nxf4 {[%clk 0:00:09.6]} 33. exf7+ {[%clk
0:00:19.8]} 33... Kxf7 {[%clk 0:00:10.5]} 34. Nd6+ {[%clk 0:00:20.1]} 34... Kf8
{[%clk 0:00:11.1]} 35. Rxe8+ {[%clk 0:00:20]} 1-0

[Event "Late-Titled-Tuesday-Blitz-September-19-2023"]
[Site "Chess.com"]
[Date "2023.09.19"]
[Round "7"]
[White "ameetghasi100"]
[Black "YEIKO2017"]
[Result "1-0"]
[WhiteElo "2696"]
[BlackElo "2471"]
[TimeControl "180+1"]
[EndTime "15:14:58 PDT"]
[Termination "ameetghasi100 won by checkmate"]

1. d4 {[%clk 0:03:00.9]} 1... Nf6 {[%clk 0:02:55.8]} 2. Nf3 {[%clk 0:03:01.4]}
2... g6 {[%clk 0:02:55.6]} 3. g3 {[%clk 0:03:01.1]} 3... Bg7 {[%clk 0:02:55.7]}
4. Bg2 {[%clk 0:03:02]} 4... c5 {[%clk 0:02:55.9]} 5. O-O {[%clk 0:03:02.9]}
5... cxd4 {[%clk 0:02:56.1]} 6. Nxd4 {[%clk 0:03:03.8]} 6... Nc6 {[%clk
0:02:56]} 7. Nb3 {[%clk 0:03:03.5]} 7... O-O {[%clk 0:02:55.8]} 8. c4 {[%clk
0:03:03.5]} 8... d6 {[%clk 0:02:56.3]} 9. Nc3 {[%clk 0:03:03.8]} 9... a5 {[%clk
0:02:46.8]} 10. Be3 {[%clk 0:03:01.7]} 10... a4 {[%clk 0:02:45.4]} 11. Nd4
{[%clk 0:02:59.6]} 11... Ne5 {[%clk 0:02:39.2]} 12. Nxa4 {[%clk 0:02:56.6]}
12... Nxc4 {[%clk 0:02:36.3]} 13. Bc1 {[%clk 0:02:56]} 13... Bd7 {[%clk
0:02:23.7]} 14. Nc3 {[%clk 0:02:54.5]} 14... Qa5 {[%clk 0:02:08.6]} 15. e3
{[%clk 0:02:35.3]} 15... b5 {[%clk 0:01:56.5]} 16. Nd5 {[%clk 0:02:19.3]} 16...
Nxd5 {[%clk 0:01:51.6]} 17. Bxd5 {[%clk 0:02:20.2]} 17... Rac8 {[%clk
0:01:45.7]} 18. b3 {[%clk 0:02:18.7]} 18... Nb6 {[%clk 0:01:35.7]} 19. Bg2
{[%clk 0:02:17.8]} 19... e5 {[%clk 0:01:31.2]} 20. Ne2 {[%clk 0:02:17]} 20... d5
{[%clk 0:01:23.4]} 21. Bd2 {[%clk 0:02:16]} 21... Qa6 {[%clk 0:01:02.7]} 22. Bb4
{[%clk 0:02:15.2]} 22... Rfd8 {[%clk 0:00:58]} 23. Qd2 {[%clk 0:02:15.7]} 23...
Bc6 {[%clk 0:00:53.1]} 24. Rac1 {[%clk 0:02:12.8]} 24... Bb7 {[%clk 0:00:52.6]}
25. Rfd1 {[%clk 0:01:58.1]} 25... h5 {[%clk 0:00:50.1]} 26. h3 {[%clk
0:01:58.2]} 26... d4 {[%clk 0:00:37.4]} 27. Bxb7 {[%clk 0:01:49.5]} 27... Qxb7
{[%clk 0:00:38.3]} 28. exd4 {[%clk 0:01:49.7]} 28... exd4 {[%clk 0:00:37.1]} 29.
Ba5 {[%clk 0:01:48.9]} 29... Rxc1 {[%clk 0:00:31.8]} 30. Rxc1 {[%clk 0:01:49.8]}
30... Rd7 {[%clk 0:00:26.8]} 31. Bxb6 {[%clk 0:01:48.6]} 31... Qxb6 {[%clk
0:00:26.4]} 32. Qd3 {[%clk 0:01:44.2]} 32... Kh7 {[%clk 0:00:24.1]} 33. Rc2
{[%clk 0:01:36.3]} 33... Qe6 {[%clk 0:00:24.2]} 34. Nf4 {[%clk 0:01:34.2]} 34...
Qe1+ {[%clk 0:00:23.2]} 35. Kg2 {[%clk 0:01:34.3]} 35... h4 {[%clk 0:00:20.5]}
36. Re2 {[%clk 0:01:24.8]} 36... Qc3 {[%clk 0:00:20.6]} 37. Qxb5 {[%clk
0:01:19.1]} 37... Rc7 {[%clk 0:00:15]} 38. Nd5 {[%clk 0:01:14.2]} 38... Qc6
{[%clk 0:00:14.3]} 39. Qxc6 {[%clk 0:01:09.8]} 39... Rxc6 {[%clk 0:00:15.2]} 40.
gxh4 {[%clk 0:01:10.4]} 40... Rc5 {[%clk 0:00:12.4]} 41. Nb4 {[%clk 0:01:05.3]}
41... Bh6 {[%clk 0:00:11.6]} 42. Re4 {[%clk 0:01:03.6]} 42... Bg7 {[%clk
0:00:09.2]} 43. Re7 {[%clk 0:01:03.8]} 43... f5 {[%clk 0:00:08.7]} 44. Rd7
{[%clk 0:00:59]} 44... Kh6 {[%clk 0:00:08.5]} 45. Nd3 {[%clk 0:00:53.6]} 45...
Rc3 {[%clk 0:00:07.4]} 46. Nf4 {[%clk 0:00:53.6]} 46... Be5 {[%clk 0:00:07.4]}
47. Ne6 {[%clk 0:00:53.4]} 47... d3 {[%clk 0:00:06.9]} 48. Ng5 {[%clk
0:00:52.2]} 48... Rc2 {[%clk 0:00:03.4]} 49. Rh7# {[%clk 0:00:51.5]} 1-0

[Event "Late-Titled-Tuesday-Blitz-September-19-2023"]
[Site "Chess.com"]
[Date "2023.09.19"]
[Round "7"]
[White "GoltsevDmitry2000"]
[Black "ElDivis"]
[Result "0-1"]
[WhiteElo "2643"]
[BlackElo "2528"]
[TimeControl "180+1"]
[EndTime "15:14:59 PDT"]
[Termination "ElDivis won by checkmate"]

1. e4 {[%clk 0:02:51.9]} 1... c5 {[%clk 0:02:59]} 2. Nf3 {[%clk 0:02:49.6]} 2...
d6 {[%clk 0:02:59.5]} 3. d4 {[%clk 0:02:50.2]} 3... Nf6 {[%clk 0:02:59.8]} 4.
Nc3 {[%clk 0:02:49.8]} 4... cxd4 {[%clk 0:03:00.2]} 5. Nxd4 {[%clk 0:02:50.7]}
5... g6 {[%clk 0:03:00.6]} 6. Be2 {[%clk 0:02:50.6]} 6... Bg7 {[%clk 0:03:00.7]}
7. Bg5 {[%clk 0:02:50.9]} 7... O-O {[%clk 0:03:00.2]} 8. Qd2 {[%clk 0:02:51.3]}
8... Nc6 {[%clk 0:03:00.2]} 9. Nb3 {[%clk 0:02:47.9]} 9... Be6 {[%clk
0:02:58.6]} 10. h4 {[%clk 0:02:43.3]} 10... a5 {[%clk 0:02:54]} 11. h5 {[%clk
0:02:41.7]} 11... a4 {[%clk 0:02:48.4]} 12. Nc1 {[%clk 0:02:40.4]} 12... a3
{[%clk 0:02:47]} 13. b3 {[%clk 0:02:28.5]} 13... Nxe4 {[%clk 0:02:42.7]} 14.
Nxe4 {[%clk 0:02:29.4]} 14... Bxa1 {[%clk 0:02:42.6]} 15. hxg6 {[%clk
0:02:29.2]} 15... fxg6 {[%clk 0:02:40.2]} 16. c3 {[%clk 0:02:20.1]} 16... Rc8
{[%clk 0:02:33.6]} 17. Nd3 {[%clk 0:02:12.5]} 17... Bf5 {[%clk 0:02:23.5]} 18.
Ng3 {[%clk 0:01:21]} 18... Ne5 {[%clk 0:02:21.8]} 19. c4 {[%clk 0:01:05.3]}
19... Nxd3+ {[%clk 0:01:56.2]} 20. Bxd3 {[%clk 0:01:03.2]} 20... Bxd3 {[%clk
0:01:57.1]} 21. Qxd3 {[%clk 0:01:04.1]} 21... Qa5+ {[%clk 0:01:44.6]} 22. Bd2
{[%clk 0:01:02.1]} 22... Qe5+ {[%clk 0:01:41.4]} 23. Kf1 {[%clk 0:00:59.3]}
23... Bd4 {[%clk 0:01:25.2]} 24. Ne4 {[%clk 0:00:55.3]} 24... d5 {[%clk
0:01:13.9]} 25. cxd5 {[%clk 0:00:55.1]} 25... Rf7 {[%clk 0:00:44.7]} 26. f4
{[%clk 0:00:29.1]} 26... Rcf8 {[%clk 0:00:26.7]} 27. Ke2 {[%clk 0:00:28]} 27...
Rxf4 {[%clk 0:00:20.5]} 28. Bxf4 {[%clk 0:00:12.5]} 28... Rxf4 {[%clk
0:00:21.4]} 29. Kd2 {[%clk 0:00:07.5]} 29... Rxe4 {[%clk 0:00:18.8]} 30. Rf1
{[%clk 0:00:07.3]} 30... Be3+ {[%clk 0:00:16.6]} 31. Ke2 {[%clk 0:00:03.4]}
31... Bb6+ {[%clk 0:00:11.2]} 32. Kf3 {[%clk 0:00:01.4]} 32... Qf4# {[%clk
0:00:09.8]} 0-1